[Event "Titled Tuesday Blitz April 11 Early 2023"]
[White "De Souza, Cristiano Gomes"]
[Black "Novikov, Evgenij"]
[WhiteFideId "2151758"]
[BlackFideId "4125380"]
[WhiteElo "2068"]
[BlackElo "2242"]
[Result "1-0"]
[Round "11"]
[TimeControl "180+2"]
[Date "2023.04.11"]
[WhiteClock "0:00:15"]
[BlackClock "0:00:03"]

1. d4 {[%clk 0:02:16]}  Nf6 {[%clk 0:02:57]} 2. c4 {[%clk 0:02:12]}  c5 {[%clk 0:02:57]} 3. d5 {[%clk 0:02:08]}  b5 {[%clk 0:02:57]} 4. cxb5 {[%clk 0:02:08]}  g6 {[%clk 0:02:57]} 5. g3 {[%clk 0:02:06]}  Bg7 {[%clk 0:02:56]} 6. Bg2 {[%clk 0:02:06]}  d6 {[%clk 0:02:54]} 7. Nf3 {[%clk 0:02:01]}  a6 {[%clk 0:02:54]} 8. bxa6 {[%clk 0:01:58]}  Bxa6 {[%clk 0:02:55]} 9. Nc3 {[%clk 0:01:58]}  O-O {[%clk 0:02:52]} 10. O-O {[%clk 0:01:56]}  Nbd7 {[%clk 0:02:52]} 11. Qc2 {[%clk 0:01:54]}  Qc7 {[%clk 0:02:43]} 12. b3 {[%clk 0:01:51]}  Rfb8 {[%clk 0:02:35]} 13. Rd1 {[%clk 0:01:46]}  c4 {[%clk 0:02:25]} 14. Nd4 {[%clk 0:01:40]}  cxb3 {[%clk 0:02:17]} 15. axb3 {[%clk 0:01:37]}  Ne5 {[%clk 0:02:10]} 16. Nc6 {[%clk 0:01:34]}  Rc8 {[%clk 0:01:54]} 17. Bb2 {[%clk 0:01:28]}  Bb7 {[%clk 0:01:12]} 18. Nb5 {[%clk 0:01:23]}  Qd7 {[%clk 0:01:11]} 19. Rxa8 {[%clk 0:01:20]}  Rxa8 {[%clk 0:01:04]} 20. Nxe5 {[%clk 0:01:17]}  Qxb5 {[%clk 0:00:58]} 21. Nc6 {[%clk 0:01:09]}  Kf8 {[%clk 0:00:36]} 22. Qc4 {[%clk 0:00:36]}  Qxc4 {[%clk 0:00:35]} 23. bxc4 {[%clk 0:00:31]}  Ra2 {[%clk 0:00:35]} 24. Rb1 {[%clk 0:00:18]}  Bxc6 {[%clk 0:00:25]} 25. dxc6 {[%clk 0:00:17]}  Ne8 {[%clk 0:00:25]} 26. Bxg7+ {[%clk 0:00:16]}  Kxg7 {[%clk 0:00:26]} 27. Bf3 {[%clk 0:00:16]}  Ra7 {[%clk 0:00:23]} 28. Rb7 {[%clk 0:00:16]}  Ra8 {[%clk 0:00:17]} 29. Rxe7 {[%clk 0:00:15]}  Rc8 {[%clk 0:00:16]} 30. Rd7 {[%clk 0:00:14]}  Kf6 {[%clk 0:00:12]} 31. Bd5 {[%clk 0:00:14]}  Ke5 {[%clk 0:00:11]} 32. Rxf7 {[%clk 0:00:13]}  h5 {[%clk 0:00:10]} 33. Re7+ {[%clk 0:00:13]}  Kd4 {[%clk 0:00:09]} 34. Re6 {[%clk 0:00:14]}  g5 {[%clk 0:00:08]} 35. Rh6 {[%clk 0:00:13]}  h4 {[%clk 0:00:07]} 36. gxh4 {[%clk 0:00:13]}  gxh4 {[%clk 0:00:08]} 37. Rxh4+ {[%clk 0:00:13]}  Kc5 {[%clk 0:00:09]} 38. Kg2 {[%clk 0:00:14]}  Nf6 {[%clk 0:00:09]} 39. Rf4 {[%clk 0:00:13]}  Nxd5 {[%clk 0:00:08]} 40. cxd5 {[%clk 0:00:12]}  Kxd5 {[%clk 0:00:08]} 41. Rf5+ {[%clk 0:00:12]}  Ke6 {[%clk 0:00:05]} 42. Rf3 {[%clk 0:00:12]}  Rxc6 {[%clk 0:00:06]} 43. Re3+ {[%clk 0:00:12]}  Kf5 {[%clk 0:00:05]} 44. Rd3 {[%clk 0:00:13]}  Ke4 {[%clk 0:00:03]} 45. Re3+ {[%clk 0:00:12]}  Kf5 {[%clk 0:00:03]} 46. Rg3 {[%clk 0:00:12]}  d5 {[%clk 0:00:03]} 47. h4 {[%clk 0:00:13]}  Rh6 {[%clk 0:00:02]} 48. Kh3 {[%clk 0:00:13]}  d4 {[%clk 0:00:02]} 49. Rg5+ {[%clk 0:00:13]}  Ke4 {[%clk 0:00:02]} 50. Rg8 {[%clk 0:00:13]}  Rf6 {[%clk 0:00:02]} 51. Re8+ {[%clk 0:00:14]}  Kd5 {[%clk 0:00:02]} 52. f3 {[%clk 0:00:14]}  Kc4 {[%clk 0:00:01]} 53. Re4 {[%clk 0:00:14]}  Kc3 {[%clk 0:00:02]} 54. Kg4 {[%clk 0:00:14]}  Rd6 {[%clk 0:00:02]} 55. h5 {[%clk 0:00:13]}  Kd2 {[%clk 0:00:02]} 56. Kg5 {[%clk 0:00:13]}  Rd5+ {[%clk 0:00:02]} 57. Kg6 {[%clk 0:00:13]}  Rd6+ {[%clk 0:00:03]} 58. Kf5 {[%clk 0:00:13]}  Rd5+ {[%clk 0:00:03]} 59. Re5 {[%clk 0:00:13]}  Rxe5+ {[%clk 0:00:02]} 60. Kxe5 {[%clk 0:00:14]}  Kxe2 {[%clk 0:00:03]} 61. Kxd4 {[%clk 0:00:14]}  Kxf3 {[%clk 0:00:03]} 62. h6 {[%clk 0:00:15]} 1-0


[Site "https://www.chess.com"]

[Event "Titled Tuesday Blitz April 11 Early 2023"]
[White "Aung Thant Zin"]
[Black "Lorenzo De La Riva, Lazaro"]
[WhiteFideId "13000063"]
[BlackFideId "2268809"]
[WhiteElo "2278"]
[BlackElo "2294"]
[Result "0-1"]
[Round "11"]
[TimeControl "180+2"]
[Date "2023.04.11"]
[WhiteClock "0:00:10"]
[BlackClock "0:00:51"]

1. e4 {[%clk 0:02:53]}  d5 {[%clk 0:03:00]} 2. exd5 {[%clk 0:02:52]}  Qd7 {[%clk 0:03:00]} 3. d4 {[%clk 0:02:50]}  g6 {[%clk 0:02:59]} 4. Nf3 {[%clk 0:02:49]}  Bg7 {[%clk 0:02:58]} 5. c4 {[%clk 0:02:49]}  Nf6 {[%clk 0:02:58]} 6. Nc3 {[%clk 0:02:48]}  O-O {[%clk 0:02:58]} 7. Bg5 {[%clk 0:02:47]}  a6 {[%clk 0:02:58]} 8. Qd2 {[%clk 0:02:47]}  c6 {[%clk 0:02:56]} 9. dxc6 {[%clk 0:02:45]}  bxc6 {[%clk 0:02:55]} 10. O-O-O {[%clk 0:02:46]}  a5 {[%clk 0:02:55]} 11. Bh6 {[%clk 0:02:45]}  a4 {[%clk 0:02:53]} 12. a3 {[%clk 0:02:44]}  Qb7 {[%clk 0:02:52]} 13. Bxg7 {[%clk 0:02:41]}  Kxg7 {[%clk 0:02:52]} 14. Bd3 {[%clk 0:02:40]}  Be6 {[%clk 0:02:46]} 15. h3 {[%clk 0:02:39]}  Qb3 {[%clk 0:02:45]} 16. Qc2 {[%clk 0:02:38]}  Bxc4 {[%clk 0:02:44]} 17. Qxb3 {[%clk 0:02:25]}  Bxb3 {[%clk 0:02:45]} 18. Rde1 {[%clk 0:02:24]}  e6 {[%clk 0:02:42]} 19. Nd2 {[%clk 0:02:15]}  Bd5 {[%clk 0:02:40]} 20. f3 {[%clk 0:02:13]}  Nbd7 {[%clk 0:02:38]} 21. Nde4 {[%clk 0:02:12]}  Rfb8 {[%clk 0:02:36]} 22. Re2 {[%clk 0:02:11]}  Nb6 {[%clk 0:02:36]} 23. Rhe1 {[%clk 0:02:10]}  Nc4 {[%clk 0:02:36]} 24. Bxc4 {[%clk 0:02:09]}  Bxc4 {[%clk 0:02:36]} 25. Rd2 {[%clk 0:02:09]}  Bd5 {[%clk 0:02:36]} 26. Nc5 {[%clk 0:02:08]}  Bb3 {[%clk 0:02:32]} 27. f4 {[%clk 0:02:05]}  Nd5 {[%clk 0:02:31]} 28. g3 {[%clk 0:01:42]}  h5 {[%clk 0:02:26]} 29. N3e4 {[%clk 0:01:39]}  h4 {[%clk 0:02:22]} 30. Rf1 {[%clk 0:01:22]}  hxg3 {[%clk 0:02:20]} 31. Nxg3 {[%clk 0:01:22]}  Rh8 {[%clk 0:02:20]} 32. Nxb3 {[%clk 0:01:18]}  axb3 {[%clk 0:02:21]} 33. Rd3 {[%clk 0:01:17]}  Rab8 {[%clk 0:02:18]} 34. Rff3 {[%clk 0:01:15]}  Rh4 {[%clk 0:02:16]} 35. Rxb3 {[%clk 0:01:11]}  Rd8 {[%clk 0:02:14]} 36. Ne2 {[%clk 0:01:06]}  Ne7 {[%clk 0:02:09]} 37. a4 {[%clk 0:01:02]}  Ra8 {[%clk 0:02:07]} 38. Ra3 {[%clk 0:01:00]}  Rh5 {[%clk 0:02:05]} 39. b4 {[%clk 0:00:58]}  Nd5 {[%clk 0:02:04]} 40. Rfb3 {[%clk 0:00:57]}  Nb6 {[%clk 0:02:04]} 41. a5 {[%clk 0:00:55]}  Nc4 {[%clk 0:02:05]} 42. Ra2 {[%clk 0:00:52]}  Nd6 {[%clk 0:02:05]} 43. Rc2 {[%clk 0:00:50]}  Ra6 {[%clk 0:02:06]} 44. Rc5 {[%clk 0:00:49]}  Rh4 {[%clk 0:02:04]} 45. Rbc3 {[%clk 0:00:45]}  Ra8 {[%clk 0:01:58]} 46. Rxc6 {[%clk 0:00:45]}  Ne4 {[%clk 0:01:59]} 47. Re3 {[%clk 0:00:44]}  Nf6 {[%clk 0:01:58]} 48. Nc3 {[%clk 0:00:43]}  Rxf4 {[%clk 0:01:57]} 49. Rd3 {[%clk 0:00:40]}  Rf5 {[%clk 0:01:52]} 50. a6 {[%clk 0:00:37]}  g5 {[%clk 0:01:28]} 51. b5 {[%clk 0:00:35]}  Nd7 {[%clk 0:01:11]} 52. d5 {[%clk 0:00:29]}  e5 {[%clk 0:01:07]} 53. Ne4 {[%clk 0:00:25]}  Rf1+ {[%clk 0:00:59]} 54. Kb2 {[%clk 0:00:23]}  Rf4 {[%clk 0:00:55]} 55. Nxg5 {[%clk 0:00:21]}  Rb4+ {[%clk 0:00:56]} 56. Kc3 {[%clk 0:00:20]}  Rxb5 {[%clk 0:00:56]} 57. Rc7 {[%clk 0:00:19]}  Nb6 {[%clk 0:00:52]} 58. Rxf7+ {[%clk 0:00:16]}  Kg6 {[%clk 0:00:52]} 59. h4 {[%clk 0:00:16]}  Rc8+ {[%clk 0:00:52]} 60. Kd2 {[%clk 0:00:16]}  Nxd5 {[%clk 0:00:52]} 61. Rd7 {[%clk 0:00:14]}  Nf4 {[%clk 0:00:51]} 62. R3d6+ {[%clk 0:00:12]}  Kf5 {[%clk 0:00:52]} 63. Rf7+ {[%clk 0:00:12]}  Kg4 {[%clk 0:00:52]} 64. Ne6 {[%clk 0:00:10]}  Rb2+ {[%clk 0:00:52]} 65. Ke3 {[%clk 0:00:10]}  Rc3+ {[%clk 0:00:51]} 66. Ke4 {[%clk 0:00:10]}  Re2# {[%clk 0:00:51]} 0-1


[Site "https://www.chess.com"]

[Event "Titled Tuesday Blitz April 11 Early 2023"]
[White "Rios Escobar, Adan"]
[Black "slidingknight2775"]
[WhiteFideId "3403645"]
[WhiteElo "2458"]
[BlackElo "2567"]
[Result "1-0"]
[Round "11"]
[TimeControl "180+2"]
[Date "2023.04.11"]
[WhiteClock "0:00:08"]
[BlackClock "0:00:20"]

1. d4 {[%clk 0:02:55]}  Nf6 {[%clk 0:03:00]} 2. g3 {[%clk 0:02:55]}  d5 {[%clk 0:02:58]} 3. Nf3 {[%clk 0:02:54]}  e6 {[%clk 0:02:55]} 4. Bg2 {[%clk 0:02:54]}  Be7 {[%clk 0:02:56]} 5. c4 {[%clk 0:02:54]}  O-O {[%clk 0:02:55]} 6. O-O {[%clk 0:02:55]}  dxc4 {[%clk 0:02:56]} 7. Qc2 {[%clk 0:02:55]}  b5 {[%clk 0:02:56]} 8. a4 {[%clk 0:02:54]}  b4 {[%clk 0:02:56]} 9. Nfd2 {[%clk 0:02:53]}  c6 {[%clk 0:02:56]} 10. Nxc4 {[%clk 0:02:50]}  Qxd4 {[%clk 0:02:56]} 11. Rd1 {[%clk 0:02:42]}  Qc5 {[%clk 0:02:56]} 12. Be3 {[%clk 0:02:40]}  Qh5 {[%clk 0:02:56]} 13. h3 {[%clk 0:02:37]}  Ba6 {[%clk 0:02:49]} 14. Nbd2 {[%clk 0:02:26]}  Nd5 {[%clk 0:02:37]} 15. Nf3 {[%clk 0:02:13]}  Bxc4 {[%clk 0:02:33]} 16. Qxc4 {[%clk 0:02:06]}  Nxe3 {[%clk 0:02:33]} 17. fxe3 {[%clk 0:02:07]}  Bf6 {[%clk 0:02:20]} 18. Nd4 {[%clk 0:01:59]}  Qh6 {[%clk 0:02:14]} 19. Rd3 {[%clk 0:01:53]}  a5 {[%clk 0:01:52]} 20. Rad1 {[%clk 0:01:42]}  Ra7 {[%clk 0:01:27]} 21. Kh2 {[%clk 0:01:26]}  Rd7 {[%clk 0:01:20]} 22. Nxc6 {[%clk 0:01:23]}  Nxc6 {[%clk 0:01:18]} 23. Qxc6 {[%clk 0:01:09]}  Rxd3 {[%clk 0:01:15]} 24. Rxd3 {[%clk 0:01:10]}  Bxb2 {[%clk 0:01:11]} 25. Qc5 {[%clk 0:01:01]}  Bc3 {[%clk 0:00:44]} 26. Qxa5 {[%clk 0:01:00]}  g6 {[%clk 0:00:44]} 27. Qb5 {[%clk 0:00:53]}  Rc8 {[%clk 0:00:28]} 28. a5 {[%clk 0:00:53]}  Qf8 {[%clk 0:00:28]} 29. a6 {[%clk 0:00:50]}  Rb8 {[%clk 0:00:26]} 30. Bb7 {[%clk 0:00:43]}  Kg7 {[%clk 0:00:06]} 31. a7 {[%clk 0:00:40]}  Re8 {[%clk 0:00:06]} 32. Qxe8 {[%clk 0:00:30]}  Qxe8 {[%clk 0:00:07]} 33. a8=Q {[%clk 0:00:30]}  Qe7 {[%clk 0:00:05]} 34. Bf3 {[%clk 0:00:25]}  Qf6 {[%clk 0:00:03]} 35. Qb7 {[%clk 0:00:24]}  h5 {[%clk 0:00:03]} 36. h4 {[%clk 0:00:14]}  Qe5 {[%clk 0:00:03]} 37. Qe4 {[%clk 0:00:11]}  Qf6 {[%clk 0:00:02]} 38. Qf4 {[%clk 0:00:11]}  Qe7 {[%clk 0:00:02]} 39. Bc6 {[%clk 0:00:10]}  Bf6 {[%clk 0:00:02]} 40. Rd7 {[%clk 0:00:10]}  Qc5 {[%clk 0:00:01]} 41. Ba4 {[%clk 0:00:10]}  Qc2 {[%clk 0:00:01]} 42. Qf3 {[%clk 0:00:09]}  b3 {[%clk 0:00:02]} 43. Bxb3 {[%clk 0:00:09]}  Qxb3 {[%clk 0:00:03]} 44. Qb7 {[%clk 0:00:09]}  Qxb7 {[%clk 0:00:02]} 45. Rxb7 {[%clk 0:00:09]}  Be5 {[%clk 0:00:03]} 46. Kg2 {[%clk 0:00:09]}  Bf6 {[%clk 0:00:04]} 47. Kf3 {[%clk 0:00:10]}  Be5 {[%clk 0:00:05]} 48. e4 {[%clk 0:00:11]}  Bf6 {[%clk 0:00:06]} 49. Kf4 {[%clk 0:00:11]}  Bd8 {[%clk 0:00:06]} 50. e5 {[%clk 0:00:11]}  Ba5 {[%clk 0:00:07]} 51. e4 {[%clk 0:00:11]}  Bd2+ {[%clk 0:00:07]} 52. Kf3 {[%clk 0:00:11]}  Be1 {[%clk 0:00:08]} 53. Rb5 {[%clk 0:00:11]}  Bc3 {[%clk 0:00:08]} 54. Rc5 {[%clk 0:00:11]}  Bd4 {[%clk 0:00:08]} 55. Rb5 {[%clk 0:00:11]}  Bc3 {[%clk 0:00:08]} 56. g4 {[%clk 0:00:11]}  hxg4+ {[%clk 0:00:08]} 57. Kxg4 {[%clk 0:00:12]}  Be1 {[%clk 0:00:08]} 58. Rc5 {[%clk 0:00:10]}  Bd2 {[%clk 0:00:08]} 59. Rc4 {[%clk 0:00:10]}  Be3 {[%clk 0:00:08]} 60. Rc2 {[%clk 0:00:11]}  Bd4 {[%clk 0:00:08]} 61. Kf4 {[%clk 0:00:10]}  Ba1 {[%clk 0:00:07]} 62. Rd2 {[%clk 0:00:10]}  Bc3 {[%clk 0:00:06]} 63. Ra2 {[%clk 0:00:10]}  Be1 {[%clk 0:00:07]} 64. Kg4 {[%clk 0:00:10]}  Bc3 {[%clk 0:00:07]} 65. Kf4 {[%clk 0:00:08]}  Be1 {[%clk 0:00:07]} 66. Rh2 {[%clk 0:00:08]}  Ba5 {[%clk 0:00:04]} 67. Rh3 {[%clk 0:00:09]}  Bd8 {[%clk 0:00:03]} 68. Kg4 {[%clk 0:00:07]}  Be7 {[%clk 0:00:04]} 69. h5 {[%clk 0:00:08]}  gxh5+ {[%clk 0:00:04]} 70. Rxh5 {[%clk 0:00:08]}  Bc5 {[%clk 0:00:05]} 71. Rg5+ {[%clk 0:00:08]}  Kf8 {[%clk 0:00:06]} 72. Kh5 {[%clk 0:00:08]}  Ke7 {[%clk 0:00:06]} 73. Kh6 {[%clk 0:00:09]}  Bd4 {[%clk 0:00:07]} 74. Kg7 {[%clk 0:00:08]}  f6 {[%clk 0:00:05]} 75. Rh5 {[%clk 0:00:03]}  fxe5 {[%clk 0:00:05]} 76. Kg6 {[%clk 0:00:03]}  Kd6 {[%clk 0:00:06]} 77. Kf6 {[%clk 0:00:03]}  Be3 {[%clk 0:00:05]} 78. Rh7 {[%clk 0:00:03]}  Bf4 {[%clk 0:00:05]} 79. Re7 {[%clk 0:00:03]}  Kc5 {[%clk 0:00:06]} 80. Rxe6 {[%clk 0:00:04]}  Kd4 {[%clk 0:00:06]} 81. Kf5 {[%clk 0:00:04]}  Bh2 {[%clk 0:00:07]} 82. Rd6+ {[%clk 0:00:04]}  Ke3 {[%clk 0:00:07]} 83. Rd5 {[%clk 0:00:04]}  Bg3 {[%clk 0:00:06]} 84. Rxe5 {[%clk 0:00:04]}  Kd4 {[%clk 0:00:07]} 85. Rd5+ {[%clk 0:00:04]}  Kc4 {[%clk 0:00:07]} 86. Rd1 {[%clk 0:00:04]}  Bb8 {[%clk 0:00:07]} 87. e5 {[%clk 0:00:05]}  Kc5 {[%clk 0:00:06]} 88. e6 {[%clk 0:00:05]}  Bd6 {[%clk 0:00:07]} 89. Kf6 {[%clk 0:00:02]}  Bg3 {[%clk 0:00:06]} 90. Kf7 {[%clk 0:00:02]}  Bh4 {[%clk 0:00:07]} 91. e7 {[%clk 0:00:02]}  Bxe7 {[%clk 0:00:08]} 92. Kxe7 {[%clk 0:00:03]}  Kc4 {[%clk 0:00:09]} 93. Ke6 {[%clk 0:00:03]}  Kc3 {[%clk 0:00:10]} 94. Ke5 {[%clk 0:00:04]}  Kc2 {[%clk 0:00:10]} 95. Rd8 {[%clk 0:00:04]}  Kc3 {[%clk 0:00:11]} 96. Ke4 {[%clk 0:00:04]}  Kc2 {[%clk 0:00:12]} 97. Ke3 {[%clk 0:00:05]}  Kc3 {[%clk 0:00:13]} 98. Rc8+ {[%clk 0:00:05]}  Kb4 {[%clk 0:00:12]} 99. Kd4 {[%clk 0:00:05]}  Kb5 {[%clk 0:00:13]} 100. Rc1 {[%clk 0:00:04]}  Kb6 {[%clk 0:00:14]} 101. Kd5 {[%clk 0:00:04]}  Kb7 {[%clk 0:00:15]} 102. Kd6 {[%clk 0:00:05]}  Kb6 {[%clk 0:00:16]} 103. Rb1+ {[%clk 0:00:05]}  Ka5 {[%clk 0:00:16]} 104. Kc5 {[%clk 0:00:06]}  Ka4 {[%clk 0:00:17]} 105. Rb8 {[%clk 0:00:06]}  Ka3 {[%clk 0:00:18]} 106. Kc4 {[%clk 0:00:06]}  Ka2 {[%clk 0:00:19]} 107. Kc3 {[%clk 0:00:07]}  Ka1 {[%clk 0:00:19]} 108. Kc2 {[%clk 0:00:08]}  Ka2 {[%clk 0:00:20]} 109. Ra8# {[%clk 0:00:08]} 1-0


[Site "https://www.chess.com"]

[Event "Titled Tuesday Blitz April 11 Early 2023"]
[White "Baches Garcia, Guillermo"]
[Black "Omelja, Artem"]
[WhiteFideId "2209764"]
[BlackFideId "14119846"]
[WhiteElo "2450"]
[BlackElo "2404"]
[Result "1-0"]
[Round "11"]
[TimeControl "180+2"]
[Date "2023.04.11"]
[WhiteClock "0:01:06"]
[BlackClock "0:01:26"]

1. e4 {[%clk 0:03:00]}  c5 {[%clk 0:02:58]} 2. Nf3 {[%clk 0:03:01]}  Nc6 {[%clk 0:02:58]} 3. d4 {[%clk 0:03:01]}  cxd4 {[%clk 0:02:58]} 4. Nxd4 {[%clk 0:03:01]}  Nf6 {[%clk 0:02:59]} 5. Nc3 {[%clk 0:03:01]}  e5 {[%clk 0:02:59]} 6. Ndb5 {[%clk 0:03:01]}  d6 {[%clk 0:03:00]} 7. Nd5 {[%clk 0:03:02]}  Nxd5 {[%clk 0:03:00]} 8. exd5 {[%clk 0:03:02]}  Nb8 {[%clk 0:03:01]} 9. a4 {[%clk 0:03:01]}  Be7 {[%clk 0:03:01]} 10. Be2 {[%clk 0:03:01]}  O-O {[%clk 0:03:02]} 11. Bd2 {[%clk 0:03:01]}  f5 {[%clk 0:03:02]} 12. a5 {[%clk 0:03:01]}  a6 {[%clk 0:03:02]} 13. Na3 {[%clk 0:03:01]}  f4 {[%clk 0:03:03]} 14. Nc4 {[%clk 0:02:58]}  Bf5 {[%clk 0:03:03]} 15. Bb4 {[%clk 0:02:52]}  Qc7 {[%clk 0:03:00]} 16. b3 {[%clk 0:02:29]}  Nd7 {[%clk 0:03:00]} 17. g4 {[%clk 0:02:22]}  Bg6 {[%clk 0:02:56]} 18. h4 {[%clk 0:02:09]}  h6 {[%clk 0:02:42]} 19. g5 {[%clk 0:01:55]}  hxg5 {[%clk 0:02:41]} 20. hxg5 {[%clk 0:01:52]}  Nc5 {[%clk 0:02:41]} 21. Bh5 {[%clk 0:01:35]}  Bf5 {[%clk 0:02:40]} 22. Bg4 {[%clk 0:01:30]}  Bxg5 {[%clk 0:01:29]} 23. Bxf5 {[%clk 0:01:19]}  Rxf5 {[%clk 0:01:30]} 24. Qh5 {[%clk 0:01:19]}  Raf8 {[%clk 0:01:31]} 25. Qh7+ {[%clk 0:01:17]}  Kf7 {[%clk 0:01:31]} 26. Qxf5+ {[%clk 0:01:17]}  Bf6 {[%clk 0:01:28]} 27. Bxc5 {[%clk 0:01:15]}  Qxc5 {[%clk 0:01:27]} 28. Qe6+ {[%clk 0:01:10]}  Kg6 {[%clk 0:01:26]} 29. O-O-O {[%clk 0:01:06]} 1-0


[Site "https://www.chess.com"]

[Event "Titled Tuesday Blitz April 11 Early 2023"]
[White "Karamsetty, Jeevan"]
[Black "Avazkhonov, Alikhon"]
[WhiteFideId "2025337"]
[BlackFideId "14208504"]
[WhiteElo "2111"]
[BlackElo "1739"]
[Result "1-0"]
[Round "11"]
[TimeControl "180+2"]
[Date "2023.04.11"]
[WhiteClock "0:00:53"]
[BlackClock "0:00:04"]

1. e4 {[%clk 0:03:00]}  c6 {[%clk 0:02:58]} 2. d4 {[%clk 0:03:00]}  d5 {[%clk 0:02:59]} 3. Nc3 {[%clk 0:03:01]}  dxe4 {[%clk 0:02:59]} 4. Nxe4 {[%clk 0:03:02]}  Nf6 {[%clk 0:03:00]} 5. Nxf6+ {[%clk 0:03:01]}  exf6 {[%clk 0:03:00]} 6. Nf3 {[%clk 0:03:02]}  Bd6 {[%clk 0:03:01]} 7. c3 {[%clk 0:03:02]}  O-O {[%clk 0:03:01]} 8. Bd3 {[%clk 0:03:02]}  Re8+ {[%clk 0:03:02]} 9. Be3 {[%clk 0:03:02]}  Bf4 {[%clk 0:03:02]} 10. O-O {[%clk 0:02:30]}  Bxe3 {[%clk 0:03:02]} 11. fxe3 {[%clk 0:02:31]}  Rxe3 {[%clk 0:02:16]} 12. Qd2 {[%clk 0:02:28]}  Re7 {[%clk 0:02:10]} 13. Nh4 {[%clk 0:02:26]}  Be6 {[%clk 0:02:08]} 14. Rxf6 {[%clk 0:02:13]}  Nd7 {[%clk 0:01:09]} 15. Rf3 {[%clk 0:02:01]}  Nf8 {[%clk 0:01:08]} 16. Raf1 {[%clk 0:01:57]}  Qd5 {[%clk 0:01:08]} 17. Rg3 {[%clk 0:01:47]}  Rae8 {[%clk 0:01:01]} 18. b3 {[%clk 0:01:39]}  Ng6 {[%clk 0:00:47]} 19. Nf3 {[%clk 0:01:32]}  Qd6 {[%clk 0:00:20]} 20. Ng5 {[%clk 0:01:30]}  h6 {[%clk 0:00:13]} 21. Ne4 {[%clk 0:01:22]}  Qd8 {[%clk 0:00:09]} 22. Nc5 {[%clk 0:01:20]}  Kh7 {[%clk 0:00:06]} 23. h4 {[%clk 0:01:16]}  h5 {[%clk 0:00:05]} 24. Qg5 {[%clk 0:01:12]}  Qd5 {[%clk 0:00:05]} 25. Bxg6+ {[%clk 0:01:08]}  fxg6 {[%clk 0:00:06]} 26. Qxg6+ {[%clk 0:01:08]}  Kg8 {[%clk 0:00:07]} 27. Ne4 {[%clk 0:01:01]}  Rf8 {[%clk 0:00:04]} 28. Nf6+ {[%clk 0:00:53]} 1-0


[Site "https://www.chess.com"]

[Event "Titled Tuesday Blitz April 11 Early 2023"]
[White "Toktomushev, Teimur"]
[Black "Goffredo_Fofi"]
[WhiteFideId "14176726"]
[WhiteElo "2116"]
[BlackElo "2518"]
[Result "0-1"]
[Round "11"]
[TimeControl "180+2"]
[Date "2023.04.11"]
[WhiteClock "0:00:01"]
[BlackClock "0:00:14"]

1. d4 {[%clk 0:03:00]}  Nf6 {[%clk 0:02:59]} 2. c4 {[%clk 0:03:00]}  g6 {[%clk 0:02:59]} 3. Nc3 {[%clk 0:03:00]}  Bg7 {[%clk 0:03:00]} 4. e4 {[%clk 0:03:01]}  O-O {[%clk 0:03:01]} 5. f3 {[%clk 0:03:01]}  d6 {[%clk 0:03:01]} 6. Be3 {[%clk 0:03:02]}  c5 {[%clk 0:03:02]} 7. Nge2 {[%clk 0:03:02]}  Nc6 {[%clk 0:03:02]} 8. d5 {[%clk 0:03:03]}  Ne5 {[%clk 0:03:02]} 9. Ng3 {[%clk 0:03:04]}  h5 {[%clk 0:03:02]} 10. Be2 {[%clk 0:03:04]}  e6 {[%clk 0:03:00]} 11. O-O {[%clk 0:02:37]}  exd5 {[%clk 0:03:00]} 12. cxd5 {[%clk 0:02:35]}  a6 {[%clk 0:03:00]} 13. a4 {[%clk 0:02:35]}  Re8 {[%clk 0:02:58]} 14. Nh1 {[%clk 0:02:30]}  Nh7 {[%clk 0:02:51]} 15. Nf2 {[%clk 0:02:25]}  f5 {[%clk 0:02:45]} 16. Qd2 {[%clk 0:02:17]}  Bd7 {[%clk 0:02:34]} 17. Rae1 {[%clk 0:01:58]}  Rb8 {[%clk 0:01:53]} 18. exf5 {[%clk 0:01:20]}  gxf5 {[%clk 0:01:53]} 19. h3 {[%clk 0:00:59]}  b5 {[%clk 0:01:53]} 20. axb5 {[%clk 0:00:58]}  axb5 {[%clk 0:01:54]} 21. b3 {[%clk 0:00:28]}  b4 {[%clk 0:01:53]} 22. Ncd1 {[%clk 0:00:28]}  h4 {[%clk 0:01:46]} 23. Nd3 {[%clk 0:00:19]}  Nf7 {[%clk 0:00:56]} 24. Nf4 {[%clk 0:00:08]}  Nf8 {[%clk 0:00:56]} 25. Bd3 {[%clk 0:00:08]}  Ne5 {[%clk 0:00:53]} 26. Nf2 {[%clk 0:00:06]}  Nxd3 {[%clk 0:00:52]} 27. N2xd3 {[%clk 0:00:07]}  Ra8 {[%clk 0:00:40]} 28. Rf2 {[%clk 0:00:04]}  Bc3 {[%clk 0:00:38]} 29. Qc1 {[%clk 0:00:03]}  Bxe1 {[%clk 0:00:36]} 30. Qxe1 {[%clk 0:00:04]}  Qf6 {[%clk 0:00:33]} 31. Re2 {[%clk 0:00:03]}  Ra1 {[%clk 0:00:31]} 32. Nc1 {[%clk 0:00:02]}  Bb5 {[%clk 0:00:24]} 33. Rd2 {[%clk 0:00:02]}  Rxc1 {[%clk 0:00:18]} 34. Qxc1 {[%clk 0:00:02]}  Rxe3 {[%clk 0:00:18]} 35. Ra2 {[%clk 0:00:02]}  Qd4 {[%clk 0:00:16]} 36. Kh1 {[%clk 0:00:01]}  Rc3 {[%clk 0:00:14]} 0-1


[Site "https://www.chess.com"]

[Event "Titled Tuesday Blitz April 11 Early 2023"]
[White "Garv Gaur"]
[Black "Vivas Zamora, Fabian Ernesto"]
[WhiteFideId "45030839"]
[BlackFideId "3902480"]
[WhiteElo "2068"]
[BlackElo "2262"]
[Result "1-0"]
[Round "11"]
[TimeControl "180+2"]
[Date "2023.04.11"]
[WhiteClock "0:01:39"]
[BlackClock "0:00:01"]

1. Nf3 {[%clk 0:03:00]}  Nf6 {[%clk 0:02:57]} 2. b3 {[%clk 0:02:57]}  g6 {[%clk 0:02:56]} 3. Bb2 {[%clk 0:02:57]}  Bg7 {[%clk 0:02:57]} 4. g3 {[%clk 0:02:57]}  O-O {[%clk 0:02:56]} 5. Bg2 {[%clk 0:02:58]}  d5 {[%clk 0:02:53]} 6. O-O {[%clk 0:02:58]}  Nc6 {[%clk 0:02:48]} 7. d3 {[%clk 0:02:58]}  Re8 {[%clk 0:02:32]} 8. c4 {[%clk 0:02:58]}  d4 {[%clk 0:02:31]} 9. a3 {[%clk 0:02:50]}  a5 {[%clk 0:02:31]} 10. e3 {[%clk 0:02:47]}  e5 {[%clk 0:02:26]} 11. exd4 {[%clk 0:02:44]}  exd4 {[%clk 0:02:23]} 12. Nbd2 {[%clk 0:02:44]}  Bf5 {[%clk 0:02:18]} 13. Qc2 {[%clk 0:02:41]}  Nd7 {[%clk 0:02:11]} 14. Rae1 {[%clk 0:02:39]}  Nc5 {[%clk 0:02:08]} 15. Ne4 {[%clk 0:02:39]}  Nxe4 {[%clk 0:01:51]} 16. dxe4 {[%clk 0:02:39]}  d3 {[%clk 0:01:46]} 17. Qd2 {[%clk 0:02:38]}  Bxe4 {[%clk 0:01:43]} 18. Bxg7 {[%clk 0:02:37]}  Kxg7 {[%clk 0:01:44]} 19. b4 {[%clk 0:02:33]}  axb4 {[%clk 0:01:40]} 20. axb4 {[%clk 0:02:33]}  Qf6 {[%clk 0:01:35]} 21. Ng5 {[%clk 0:02:24]}  Bxg2 {[%clk 0:01:34]} 22. Kxg2 {[%clk 0:02:25]}  Qd4 {[%clk 0:00:52]} 23. b5 {[%clk 0:02:20]}  Ne5 {[%clk 0:00:47]} 24. Re4 {[%clk 0:02:08]}  Qd6 {[%clk 0:00:11]} 25. Rfe1 {[%clk 0:01:53]}  h6 {[%clk 0:00:07]} 26. Nh3 {[%clk 0:01:45]}  Nxc4 {[%clk 0:00:02]} 27. Qc3+ {[%clk 0:01:42]}  Kf8 {[%clk 0:00:01]} 28. Qh8# {[%clk 0:01:39]} 1-0


[Site "https://www.chess.com"]